{"text_format":"3","workbook":"xlsx","n_sheets":2,"sheets":["Vorlage-15%-Bereich","Beispiel-15%-Bereich"],"read":"whole","date_system":"1900"}

{"sheet":"Vorlage-15%-Bereich","index":0,"n_rows":68,"n_cols":5,"rows_kept":68}
["Arbeitszeiterfassung: Arbeiten ausserhalb des Unterrichts (15%-Bereich)"]
[]
["Anstellungspensum in Lektionen1",null,"JAZ 100%2","JAZ-SOLL-Total","JAZ-SOLL-15%-Bereich"]
["Anstellungspensum in %",{"$f":"B3/29","v":{"v":0,"d":"0%"}},1890,{"$f":"C4*B4","v":0},{"$f":"D4*15%","v":0}]
[]
[null,"Bemerkungen","Anzahl","Dauer (Std.)3","Std."]
["Elternarbeit:"]
["ordentliche Elterngespräche",{"$nulls":3},{"$f":"C8*D8","v":0}]
["ausserordentliche Gespräche",{"$nulls":3},{"$f":"C9*D9","v":0}]
["Elternabende (inkl. Vorbereitung)",{"$nulls":3},0]
["Elterninformationen verfassen",{"$nulls":3},0]
["Auskunfterteilung",{"$nulls":3},0]
[{"$nulls":4},0]
["Schülerberatung:"]
["Gespräche mit Schülern",{"$nulls":3},0]
["Konflikgespräche",{"$nulls":3},0]
["Berichte an SPD etc.",{"$nulls":3},0]
["Besprechungen mit Spezialdiensten",{"$nulls":3},0]
[{"$nulls":4},0]
[{"$nulls":4},0]
["Sitzungen/Konferenzen:"]
["wöchentlichen Teamsitzungen",{"$nulls":3},0]
["Jahreskonferenz Gesamtschule",{"$nulls":3},0]
[{"$nulls":4},0]
[{"$nulls":4},0]
["Schulentwicklung:"]
["Klassenrat-Projekt",{"$nulls":3},0]
[{"$nulls":4},0]
[{"$nulls":4},0]
["Qualitätsmanagement:"]
["Q-Gruppen-Sitzungen",{"$nulls":3},0]
["Hospitationen",{"$nulls":3},0]
["Eltern-/Schüler-Befragungen",{"$nulls":3},0]
["Auswertungssitzungen",{"$nulls":3},0]
[{"$nulls":4},0]
["Kollektive Weiterbildung: "]
["Heterogenität",{"$nulls":3},0]
["Selbstgesteuertes Lernen",{"$nulls":3},0]
[{"$nulls":4},0]
[{"$nulls":4},0]
["Individuelle Weiterbildung:"]
["MathBu",{"$nulls":3},0]
["Musik im Unterricht",{"$nulls":3},0]
["Didakta",{"$nulls":3},0]
[{"$nulls":4},0]
[{"$nulls":4},0]
["Teamarbeiten (Ämtli):4"]
["Turnmaterialverwaltung",{"$nulls":3},0]
[{"$nulls":4},0]
[{"$nulls":4},0]
["Administration:"]
["Einträge in L-Office",{"$nulls":3},0]
["Zeugnisse erstellen",{"$nulls":3},0]
["Klassenliste & Absenzenkontrolle",{"$nulls":3},0]
["Stundenplan erstellen",{"$nulls":3},0]
[{"$nulls":4},0]
[{"$nulls":4},0]
["Diverses:"]
[{"$nulls":4},0]
[{"$nulls":4},0]
[{"$nulls":4},0]
["Total: 15%-Bereich","SOLL:",{"$f":"E4","v":0},"IST:",{"$f":"SUM(E8:E61)","v":0}]
[{"$nulls":3},"Differenz",{"$f":"E62-C62","v":0}]
[]
["1 Lektionen gemäss Anstellungspensum eingeben"]
["2 Nettojahresarbeitszeit (Durchschnitt) nach Abzug von Feiertagen und Ferien"]
["3 Std. dezimal angeben (z.B. 45 Minuten = 0.75 Std.)"]
["4 falls diese nicht separat entschädigt werden"]

{"sheet":"Beispiel-15%-Bereich","index":1,"n_rows":68,"n_cols":5,"rows_kept":68}
["Arbeitszeiterfassung: Arbeiten ausserhalb des Unterrichts (15%-Bereich)"]
[]
["Anstellungspensum in Lektionen1",27,"JAZ 100%2","JAZ-SOLL-Total","JAZ-SOLL-15%-Bereich"]
["Anstellungspensum in %",{"$f":"B3/29","v":{"v":0.9310344827586207,"d":"93%"}},1890,{"$f":"C4*B4","v":{"v":1759.655172413793,"d":"1760"}},{"$f":"D4*15%","v":{"v":263.94827586206895,"d":"264"}}]
[]
[null,"Bemerkungen","Anzahl","Dauer (Std.)3","Std."]
["Elternarbeit:"]
["ordentliche Elterngespräche","2 x pro Jahr, 22 Schüler",22,1.5,{"$f":"C8*D8","v":{"v":33,"d":"33.0"}}]
["ausserordentliche Gespräche",null,5,{"v":1,"d":"1.0"},{"$f":"C9*D9","v":{"v":5,"d":"5.0"}}]
["Elternabende (inkl. Vorbereitung)",null,2,{"v":4,"d":"4.0"},{"v":8,"d":"8.0"}]
["Elterninformationen verfassen",null,4,0.5,{"v":2,"d":"2.0"}]
["Auskunfterteilung",null,13,0.1,1.3]
[{"$nulls":4},0]
["Schülerberatung:"]
["Gespräche mit Schülern",null,44,0.5,{"v":22,"d":"22.0"}]
["Konflikgespräche",null,7,{"v":3,"d":"3.0"},{"v":21,"d":"21.0"}]
["Berichte an SPD etc.",null,1,{"v":4,"d":"4.0"},{"v":4,"d":"4.0"}]
["Besprechungen mit Spezialdiensten",{"$nulls":3},0]
[{"$nulls":4},0]
[{"$nulls":4},0]
["Sitzungen/Konferenzen:"]
["wöchentlichen Teamsitzungen",null,38,{"v":2,"d":"2.0"},{"v":76,"d":"76.0"}]
["Jahreskonferenz Gesamtschule",null,1,{"v":3,"d":"3.0"},{"v":3,"d":"3.0"}]
[{"$nulls":4},0]
[{"$nulls":4},0]
["Schulentwicklung:"]
["Klassenrat-Projekt","Konzept-Sitzungen",5,{"v":2,"d":"2.0"},{"v":10,"d":"10.0"}]
[{"$nulls":4},0]
[{"$nulls":4},0]
["Qualitätsmanagement:"]
["Q-Gruppen-Sitzungen",null,8,{"v":2,"d":"2.0"},{"v":16,"d":"16.0"}]
["Hospitationen",null,4,{"v":1,"d":"1.0"},{"v":4,"d":"4.0"}]
["Eltern-/Schüler-Befragungen",null,1,{"v":2,"d":"2.0"},{"v":2,"d":"2.0"}]
["Auswertungssitzungen",null,2,{"v":2,"d":"2.0"},{"v":4,"d":"4.0"}]
[{"$nulls":4},0]
["Kollektive Weiterbildung: "]
["Heterogenität",null,3,{"v":7,"d":"7.0"},{"v":21,"d":"21.0"}]
["Selbstgesteuertes Lernen",null,2,{"v":2,"d":"2.0"},{"v":4,"d":"4.0"}]
[{"$nulls":4},0]
[{"$nulls":4},0]
["Individuelle Weiterbildung:"]
["MathBu",null,2,{"v":6,"d":"6.0"},{"v":12,"d":"12.0"}]
["Musik im Unterricht",null,2,{"v":2,"d":"2.0"},{"v":4,"d":"4.0"}]
["Didakta",null,1,{"v":8,"d":"8.0"},{"v":8,"d":"8.0"}]
[{"$nulls":4},0]
[{"$nulls":4},0]
["Teamarbeiten (Ämtli):4"]
["Turnmaterialverwaltung","Pauschale",null,null,{"v":10,"d":"10.0"}]
[{"$nulls":4},0]
[{"$nulls":4},0]
["Administration:"]
["Einträge in L-Office","Pauschale",null,null,{"v":10,"d":"10.0"}]
["Zeugnisse erstellen","Pauschale",null,null,{"v":2,"d":"2.0"}]
["Klassenliste & Absenzenkontrolle","Pauschale",null,null,{"v":5,"d":"5.0"}]
["Stundenplan erstellen","Pauschale",null,null,{"v":2,"d":"2.0"}]
[]
[]
["Diverses:"]
[]
[]
[]
["Total: 15%-Bereich","SOLL:",{"$f":"E4","v":{"v":263.94827586206895,"d":"264"}},"IST:",{"$f":"SUM(E8:E61)","v":289.3}]
[{"$nulls":3},"Differenz",{"$f":"E62-C62","v":{"v":25.351724137931058,"d":"25.4"}}]
[]
["1 Lektionen gemäss Anstellungspensum eingeben"]
["2 Nettojahresarbeitszeit (Durchschnitt) nach Abzug von Feiertagen und Ferien"]
["3 Std. dezimal angeben (z.B. 45 Minuten = 0.75 Std.)"]
["4 falls diese nicht separat entschädigt werden"]